fUST/lending_fUST_20250628
["ID","MTS","AMOUNT","RATE_DAILY","PERIOD"]
[368278753,1751086249284,-304.0,0.00021454,4]
[368278754,1751086249294,-482.784213,0.0002156,4]
[368278755,1751086249303,-8309.38356543,0.0002159,5]
[368278756,1751086249313,-519.36,0.00021643,2]
[368278757,1751086249322,-460.0,0.00021643,2]
[368278758,1751086249332,-642.01,0.00021643,2]
[368278759,1751086249342,-460.0,0.00021643,2]
[368278760,1751086249352,-700.49,0.00021643,2]
[368278761,1751086249361,-460.0,0.00021643,2]
[368278762,1751086249371,-460.0,0.00021643,2]
[368278763,1751086249380,-460.0,0.00021643,2]
[368278764,1751086249391,-576.55,0.00021643,2]
[368278765,1751086249400,-2007.05,0.00021643,2]
[368278766,1751086249409,-2641.4,0.00021643,2]
[368278767,1751086249419,-1932.62,0.00021643,2]
[368278768,1751086249428,-2347.35,0.00021643,2]
[368278769,1751086249437,-463.09,0.00021643,2]
[368278770,1751086249446,-460.0,0.00021643,2]
[368278771,1751086249456,-460.0,0.00021643,2]
[368278772,1751086249466,-460.0,0.00021643,2]
[368278773,1751086249475,-708.02,0.00021643,2]
[368278774,1751086249484,-460.0,0.00021643,2]
[368278775,1751086249493,-1025.71,0.00021643,2]
[368278776,1751086249502,-460.0,0.00021643,2]
[368278777,1751086249512,-460.0,0.00021643,2]
[368278778,1751086249521,-466.75731154,0.00021643,2]
[368278779,1751086249531,-460.0,0.00021643,2]
[368278780,1751086249539,-460.0,0.00021643,2]
[368278781,1751086249548,-460.0,0.00021643,2]
[368278782,1751086249558,-2465.74,0.00021643,2]
[368278783,1751086249567,-920.64,0.00021643,2]
[368278784,1751086249576,-1611.12,0.00021643,2]
[368278785,1751086249586,-1992.32,0.00021643,2]
[368278786,1751086249595,-796.91,0.00021643,2]
[368278787,1751086249605,-460.0,0.00021643,2]
[368278788,1751086249614,-2784.35,0.00021643,2]
[368278789,1751086249623,-460.0,0.00021643,2]
[368278790,1751086249634,-2047.57,0.00021643,2]
[368278791,1751086249643,-3816.23,0.00021643,2]
[368278792,1751086249652,-460.0,0.00021643,2]
[368278793,1751086249663,-460.0,0.00021643,2]
[368278794,1751086249672,-4008.62,0.00021643,2]
[368278795,1751086249682,-696.39,0.00021643,2]
[368278796,1751086249691,-491.56,0.00021643,2]
[368278797,1751086249700,-857.49,0.00021643,2]
[368278798,1751086249710,-1215.93,0.00021643,2]
[368278799,1751086249719,-501.38,0.00021643,2]
[368278800,1751086249728,-460.0,0.00021643,2]
[368278801,1751086249737,-460.0,0.00021643,2]
[368278802,1751086249747,-679.94,0.00021643,2]
[368278803,1751086249757,-559.41,0.00021643,2]
[368278804,1751086249766,-1359.76,0.00021643,2]
[368278805,1751086249775,-1789.44,0.00021643,2]
[368278806,1751086249784,-460.0,0.00021643,2]
[368278807,1751086249794,-460.0,0.00021643,2]
[368278808,1751086249803,-954.13,0.00021643,2]
[368278809,1751086249812,-1487.89,0.00021643,2]
[368278810,1751086249821,-460.0,0.00021643,2]
[368278811,1751086249830,-460.0,0.00021643,2]
[368278812,1751086249839,-1658.91,0.00021643,2]
[368278813,1751086249848,-922.12,0.00021643,2]
[368278814,1751086249857,-707.77,0.00021643,2]
[368278815,1751086249867,-460.0,0.00021643,2]
[368278816,1751086249876,-5000.0,0.00021669,2]
[368278817,1751086249886,-304.0,0.00021697,4]
[368278818,1751086249895,-151.0,0.000217,4]
[368278819,1751086249904,-500.0,0.0002178,17]
[368278820,1751086249914,-2025.49537704,0.00021791,2]
[368278821,1751086249923,-3797.86,0.000218,2]
[368278822,1751086249934,-8309.38356543,0.00021831,6]
[368278823,1751086249944,-374.0,0.00021872,2]
[368278824,1751086249953,-519.36,0.00021917,2]
[368278825,1751086249963,-460.0,0.00021917,2]
[368278826,1751086249972,-642.01,0.00021917,2]
[368278827,1751086249981,-460.0,0.00021917,2]
[368278828,1751086249991,-700.49,0.00021917,2]
[368278829,1751086250000,-460.0,0.00021917,2]
[368278830,1751086250009,-460.0,0.00021917,2]
[368278831,1751086250018,-460.0,0.00021917,2]
[368278832,1751086250028,-576.55,0.00021917,2]
[368278833,1751086250038,-2007.05,0.00021917,2]
[368278834,1751086250047,-2641.4,0.00021917,2]
[368278835,1751086250059,-1932.62,0.00021917,2]
[368278836,1751086250068,-2347.35,0.00021917,2]
[368278837,1751086250078,-460.0,0.00021917,2]
[368278838,1751086250088,-463.09,0.00021917,2]
[368278839,1751086250097,-460.0,0.00021917,2]
[368278840,1751086250107,-460.0,0.00021917,2]
[368278841,1751086250116,-708.02,0.00021917,2]
[368278842,1751086250126,-460.0,0.00021917,2]
[368278843,1751086250136,-1025.71,0.00021917,2]
[368278844,1751086250144,-460.0,0.00021917,2]
[368278845,1751086250154,-460.0,0.00021917,2]
[368278846,1751086250164,-460.0,0.00021917,2]
[368278847,1751086250173,-460.0,0.00021917,2]
[368278848,1751086250182,-460.0,0.00021917,2]
[368278849,1751086250192,-2465.74,0.00021917,2]
[368278850,1751086250201,-920.64,0.00021917,2]
[368278851,1751086250210,-1611.12,0.00021917,2]
[368278852,1751086250219,-1992.32,0.00021917,2]
[368278853,1751086250228,-796.91,0.00021917,2]
[368278854,1751086250237,-460.0,0.00021917,2]
[368278855,1751086250247,-2784.35,0.00021917,2]
[368278856,1751086250256,-460.0,0.00021917,2]
[368278857,1751086250265,-1141.36882935,0.00021917,2]
[368278858,1751086250633,-460.0,0.00019178,2]
[368278859,1751086250642,-460.0,0.00019178,2]
[368278860,1751086250652,-1739.442711,0.000215,2]
[368278861,1751086250661,-906.20117065,0.00021917,2]
[368278862,1751086250670,-2537.13537137,0.00021917,2]
[368278863,1751086331386,184.87840279,0.00016438,3]
[368278864,1751086453548,328.909871,0.00013699,2]
[368278866,1751086646441,185.0,0.00016438,3]
[368278867,1751086725390,2000.0,0.00024658,120]
[368278868,1751086966787,175.0,0.00016438,3]
[368278869,1751087236079,-710.7461661,0.00018804,2]
[368278870,1751087280477,159.0,0.00016438,3]
[368278947,1751087438570,-203.79463679,0.00018116,2]
[368278948,1751087438580,-101.03509249,0.00018804,2]
[368278949,1751087438679,-1098.96490751,0.00018804,2]
[368278950,1751087438689,-304.0,0.00018804,2]
[368278951,1751087438698,-300.0,0.00018804,2]
[368278952,1751087438708,-24900.0,0.00018805,2]
[368278953,1751087438717,-247.50545671,0.00019177,2]
[368278954,1751087438726,-460.0,0.00019178,2]
[368278955,1751087438736,-460.0,0.00019178,2]
[368278956,1751087438746,-460.0,0.00019178,2]
[368278957,1751087438755,-460.0,0.00019178,2]
[368278958,1751087438765,-460.0,0.00019178,2]
[368278959,1751087438774,-460.0,0.00019178,2]
[368278960,1751087438783,-460.0,0.00019178,2]
[368278961,1751087438793,-460.0,0.00019178,2]
[368278962,1751087438802,-460.0,0.00019178,2]
[368278963,1751087438811,-460.0,0.00019178,2]
[368278964,1751087438820,-460.0,0.00019178,2]
[368278965,1751087438829,-460.0,0.00019178,2]
[368278966,1751087438839,-460.0,0.00019178,2]
[368278967,1751087438848,-460.0,0.00019178,2]
[368278968,1751087438857,-460.0,0.00019178,2]
[368278969,1751087438866,-476.0372211,0.00019178,2]
[368278970,1751087438875,-492.76401379,0.00019178,2]
[368278971,1751087438884,-460.0,0.00019178,2]
[368278972,1751087438893,-460.0,0.00019178,2]
[368278973,1751087438902,-460.0,0.00019178,2]
[368278974,1751087438911,-460.0,0.00019178,2]
[368278975,1751087438920,-476.08,0.00019178,2]
[368278976,1751087438929,-460.0,0.00019178,2]
[368278977,1751087438938,-460.0,0.00019178,2]
[368278978,1751087438947,-460.0,0.00019178,2]
[368278979,1751087438955,-460.0,0.00019178,2]
[368278980,1751087438964,-460.0,0.00019178,2]
[368278981,1751087438973,-460.0,0.00019178,2]
[368278982,1751087438983,-455.0,0.00019178,2]
[368278983,1751087438992,-775.28,0.00019178,2]
[368278984,1751087439001,-460.0,0.00019178,2]
[368278985,1751087439011,-501.85265272,0.00019178,2]
[368278986,1751087439020,-474.39588219,0.00019178,2]
[368278987,1751087439030,-460.0,0.00019178,2]
[368278988,1751087439039,-460.0,0.00019178,2]
[368278989,1751087439048,-460.0,0.00019178,2]
[368278990,1751087439057,-460.0,0.00019178,2]
[368278991,1751087439066,-267.13066176,0.00019178,2]
[368278992,1751087439075,-460.0,0.00019178,2]
[368278993,1751087439085,-460.0,0.00019178,2]
[368278994,1751087439095,-460.0,0.00019178,2]
[368278995,1751087439104,-460.0,0.00019178,2]
[368278996,1751087439113,-460.0,0.00019178,2]
[368278997,1751087439123,-460.0,0.00019178,2]
[368278998,1751087439132,-460.0,0.00019178,2]
[368278999,1751087439141,-460.0,0.00019178,2]
[368279000,1751087439150,-460.0,0.00019178,2]
[368279001,1751087439159,-427.20519392,0.00019178,2]
[368279002,1751087439169,-460.0,0.00019178,2]
[368279003,1751087439178,-460.0,0.00019178,2]
[368279004,1751087439187,-460.0,0.00019178,2]
[368279005,1751087439196,-460.0,0.00019178,2]
[368279006,1751087439205,-460.0,0.00019178,2]
[368279007,1751087439215,-502.88666483,0.00019178,2]
[368279008,1751087439224,-460.0,0.00019178,2]
[368279009,1751087439234,-460.0,0.00019178,2]
[368279010,1751087439243,-460.0,0.00019178,2]
[368279011,1751087439253,-206.99051486,0.00019178,2]
[368279012,1751087439262,-460.0,0.00019178,2]
[368279013,1751087439272,-460.0,0.00019178,2]
[368279014,1751087439282,-460.0,0.00019178,2]
[368279015,1751087439291,-1498.86,0.00019178,2]
[368279016,1751087439301,-460.0,0.00019178,2]
[368279017,1751087439310,-712.04,0.00019178,2]
[368279018,1751087439320,-460.0,0.00019178,2]
[368279019,1751087439329,-460.0,0.00019178,2]
[368279020,1751087439339,-486.208897,0.00019178,2]
[368279021,1751087439348,-460.0,0.00019178,2]
[368279022,1751087439358,-460.0,0.00019178,2]
[368279023,1751087439367,-460.0,0.00019178,2]
[368279024,1751087439377,-460.0,0.00019178,2]
[368279025,1751087439386,-2034.3,0.00019178,2]
[368279026,1751087439396,-2478.78,0.00019178,2]
[368279027,1751087439406,-460.0,0.00019178,2]
[368279028,1751087439415,-460.0,0.00019178,2]
[368279029,1751087439424,-460.0,0.00019178,2]
[368279030,1751087439433,-612.52,0.00019178,2]
[368279031,1751087439442,-314.65,0.00019178,2]
[368279032,1751087439453,-460.0,0.00019178,2]
[368279033,1751087439462,-460.0,0.00019178,2]
[368279034,1751087439471,-683.5,0.00019178,2]
[368279035,1751087439481,-460.0,0.00019178,2]
[368279036,1751087439490,-460.0,0.00019178,2]
[368279037,1751087439499,-2556.56,0.00019178,2]
[368279038,1751087439508,-460.0,0.00019178,2]
[368279039,1751087439518,-460.0,0.00019178,2]
[368279040,1751087439527,-460.0,0.00019178,2]
[368279041,1751087439537,-474.62,0.00019178,2]
[368279042,1751087439547,-460.0,0.00019178,2]
[368279043,1751087439556,-460.0,0.00019178,2]
[368279044,1751087439565,-151.8405361,0.00019178,2]
[368279045,1751087439575,-460.0,0.00019178,2]
[368279046,1751087439584,-460.0,0.00019178,2]
[368279047,1751087439594,-460.0,0.00019178,2]
[368279048,1751087439603,-460.0,0.00019178,2]
[368279049,1751087439614,-518.99,0.00019178,2]
[368279050,1751087439623,-763.79,0.00019178,2]
[368279051,1751087439633,-460.0,0.00019178,2]
[368279052,1751087439645,-460.0,0.00019178,2]
[368279053,1751087439656,-460.0,0.00019178,2]
[368279054,1751087439665,-2327.45,0.00019178,2]
[368279055,1751087439675,-460.0,0.00019178,2]
[368279056,1751087439684,-460.0,0.00019178,2]
[368279057,1751087439693,-460.0,0.00019178,2]
[368279058,1751087439702,-460.0,0.00019178,2]
[368279059,1751087439710,-460.0,0.00019178,2]
[368279060,1751087439719,-460.0,0.00019178,2]
[368279061,1751087439728,-460.0,0.00019178,2]
[368279062,1751087439738,-2679.76,0.00019178,2]
[368279063,1751087439747,-460.0,0.00019178,2]
[368279064,1751087439757,-169.22317659,0.00019178,2]
[368279065,1751087439766,-460.0,0.00019178,2]
[368279066,1751087439774,-460.0,0.00019178,2]
[368279067,1751087439784,-460.0,0.00019178,2]
[368279068,1751087439797,-168.09361166,0.00019178,2]
[368279069,1751087439806,-460.0,0.00019178,2]
[368279070,1751087439815,-478.22,0.00019178,2]
[368279071,1751087439824,-460.0,0.00019178,2]
[368279072,1751087439835,-460.0,0.00019178,2]
[368279073,1751087439844,-566.71663291,0.00019178,2]
[368279074,1751087439853,-460.0,0.00019178,2]
[368279075,1751087439863,-2100.28,0.00019178,2]
[368279076,1751087439872,-460.0,0.00019178,2]
[368279077,1751087439882,-460.0,0.00019178,2]
[368279078,1751087439892,-460.0,0.00019178,2]
[368279079,1751087439902,-460.0,0.00019178,2]
[368279080,1751087439912,-460.0,0.00019178,2]
[368279081,1751087439922,-500.0,0.00019178,2]
[368279082,1751087439932,-1102.85,0.00019178,2]
[368279083,1751087439942,-500.0,0.00019178,2]
[368279084,1751087439952,-500.0,0.00019178,2]
[368279085,1751087439962,-500.0,0.00019178,2]
[368279086,1751087439972,-2998.79,0.00019178,2]
[368279087,1751087439982,-460.0,0.00019178,2]
[368279088,1751087439991,-460.0,0.00019178,2]
[368279089,1751087440002,-460.0,0.00019178,2]
[368279090,1751087440011,-460.0,0.00019178,2]
[368279091,1751087440020,-424.01006372,0.00019178,2]
[368279092,1751087440031,-1008.33,0.00019178,2]
[368279093,1751087440040,-460.0,0.00019178,2]
[368279094,1751087440049,-460.0,0.00019178,2]
[368279095,1751087440058,-460.0,0.00019178,2]
[368279096,1751087440067,-1774.18,0.00019178,2]
[368279097,1751087440077,-188.62060722,0.00019178,2]
[368279098,1751087440087,-460.0,0.00019178,2]
[368279099,1751087440097,-460.0,0.00019178,2]
[368279100,1751087440106,-460.0,0.00019178,2]
[368279101,1751087440116,-460.0,0.00019178,2]
[368279102,1751087440125,-460.0,0.00019178,2]
[368279103,1751087440134,-460.0,0.00019178,2]
[368279104,1751087440144,-460.0,0.00019178,2]
[368279105,1751087440153,-519.19,0.00019178,2]
[368279106,1751087440163,-2125.58,0.00019178,2]
[368279107,1751087440172,-1953.73,0.00019178,2]
[368279109,1751087440181,-460.0,0.00019178,2]
[368279110,1751087440190,-841.77,0.00019178,2]
[368279111,1751087440199,-238.05,0.00019178,2]
[368279112,1751087440208,-1316.31,0.00019178,2]
[368279113,1751087440217,-460.0,0.00019178,2]
[368279114,1751087440228,-460.0,0.00019178,2]
[368279115,1751087440237,-460.0,0.00019178,2]
[368279116,1751087440246,-460.0,0.00019178,2]
[368279117,1751087440255,-456.62885268,0.00019178,2]
[368279118,1751087440265,-460.0,0.00019178,2]
[368279119,1751087440274,-756.38,0.00019178,2]
[368279120,1751087440283,-460.0,0.00019178,2]
[368279122,1751087440292,-735.92,0.00019178,2]
[368279124,1751087440302,-460.0,0.00019178,2]
[368279126,1751087440311,-460.0,0.00019178,2]
[368279128,1751087440320,-4060.56,0.00019178,2]
[368279130,1751087440330,-460.0,0.00019178,2]
[368279132,1751087440339,-460.0,0.00019178,2]
[368279134,1751087440348,-4380.7,0.00019178,2]
[368279136,1751087440357,-460.0,0.00019178,2]
[368279138,1751087440366,-566.08,0.00019178,2]
[368279140,1751087440375,-510.75,0.00019178,2]
[368279142,1751087440384,-460.0,0.00019178,2]
[368279144,1751087440393,-460.0,0.00019178,2]
[368279146,1751087440402,-1874.02,0.00019178,2]
[368279148,1751087440411,-477.85,0.00019178,2]
[368279150,1751087440420,-1714.33,0.00019178,2]
[368279152,1751087440429,-460.0,0.00019178,2]
[368279154,1751087440439,-460.0,0.00019178,2]
[368279156,1751087440448,-460.0,0.00019178,2]
[368279159,1751087440457,-245.42726476,0.00019178,2]
[368279162,1751087440466,-460.0,0.00019178,2]
[368279164,1751087440476,-460.0,0.00019178,2]
[368279166,1751087440485,-460.0,0.00019178,2]
[368279167,1751087440494,-460.0,0.00019178,2]
[368279168,1751087440503,-1029.75,0.00019178,2]
[368279169,1751087440512,-460.0,0.00019178,2]
[368279170,1751087440522,-460.0,0.00019178,2]
[368279171,1751087440531,-1422.98,0.00019178,2]
[368279172,1751087440540,-460.0,0.00019178,2]
[368279173,1751087440549,-987.09,0.00019178,2]
[368279174,1751087440558,-460.0,0.00019178,2]
[368279176,1751087440568,-460.0,0.00019178,2]
[368279177,1751087440577,-278.625962,0.00019178,2]
[368279178,1751087440586,-364.64,0.00019442,3]
[368279179,1751087440595,-500.0,0.00019451,2]
[368279180,1751087440604,-500.0,0.00019451,2]
[368279181,1751087440614,-500.0,0.00019451,2]
[368279183,1751087440623,-500.0,0.00019451,2]
[368279185,1751087440633,-460.0,0.00019452,2]
[368279186,1751087440643,-460.0,0.00019452,2]
[368279187,1751087440652,-460.0,0.00019452,2]
[368279188,1751087440661,-501.32856298,0.00019452,2]
[368279189,1751087440671,-460.0,0.00019452,2]
[368279190,1751087440681,-460.0,0.00019452,2]
[368279191,1751087440690,-460.0,0.00019452,2]
[368279192,1751087440700,-460.0,0.00019452,2]
[368279193,1751087440713,-460.0,0.00019452,2]
[368279194,1751087440722,-308.66903002,0.00019452,2]
[368279196,1751087440732,-460.0,0.00019452,2]
[368279198,1751087440742,-460.0,0.00019452,2]
[368279199,1751087440751,-460.0,0.00019452,2]
[368279200,1751087440761,-460.0,0.00019452,2]
[368279201,1751087440770,-460.0,0.00019452,2]
[368279202,1751087440780,-460.0,0.00019452,2]
[368279204,1751087440789,-476.08,0.00019452,2]
[368279205,1751087440798,-460.0,0.00019452,2]
[368279206,1751087440808,-368.85962986,0.00019452,2]
[368279207,1751087440817,-500.0,0.00019452,2]
[368279208,1751087440826,-474.41,0.00019452,2]
[368279209,1751087440835,-775.28,0.00019452,2]
[368279210,1751087440845,-460.0,0.00019452,2]
[368279211,1751087440855,-460.0,0.00019452,2]
[368279212,1751087440864,-460.0,0.00019452,2]
[368279213,1751087440873,-460.0,0.00019452,2]
[368279214,1751087440882,-155.49909398,0.00019452,2]
[368279215,1751087440891,-280.82,0.00019452,2]
[368279216,1751087440901,-460.0,0.00019452,2]
[368279217,1751087440910,-460.0,0.00019452,2]
[368279218,1751087440919,-460.0,0.00019452,2]
[368279219,1751087440929,-460.0,0.00019452,2]
[368279220,1751087440938,-256.11690601,0.00019452,2]
[368279221,1751087440948,-460.0,0.00019452,2]
[368279223,1751087440958,-460.0,0.00019452,2]
[368279224,1751087440967,-460.0,0.00019452,2]
[368279225,1751087440976,-460.0,0.00019452,2]
[368279226,1751087440985,-460.0,0.00019452,2]
[368279227,1751087440995,-460.0,0.00019452,2]
[368279228,1751087441004,-460.0,0.00019452,2]
[368279229,1751087441014,-1498.86,0.00019452,2]
[368279230,1751087441023,-460.0,0.00019452,2]
[368279231,1751087441032,-712.04,0.00019452,2]
[368279232,1751087441042,-460.0,0.00019452,2]
[368279233,1751087441051,-460.0,0.00019452,2]
[368279234,1751087441060,-460.0,0.00019452,2]
[368279235,1751087441069,-460.0,0.00019452,2]
[368279236,1751087441079,-2034.3,0.00019452,2]
[368279237,1751087441088,-2478.78,0.00019452,2]
[368279238,1751087441098,-460.0,0.00019452,2]
[368279239,1751087441108,-460.0,0.00019452,2]
[368279240,1751087441118,-612.52,0.00019452,2]
[368279241,1751087441127,-460.0,0.00019452,2]
[368279242,1751087441136,-460.0,0.00019452,2]
[368279243,1751087441146,-683.5,0.00019452,2]
[368279244,1751087441156,-390.0,0.00019452,2]
[368279245,1751087441165,-460.0,0.00019452,2]
[368279246,1751087441176,-2556.56,0.00019452,2]
[368279247,1751087441186,-460.0,0.00019452,2]
[368279248,1751087441195,-460.0,0.00019452,2]
[368279249,1751087441204,-474.62,0.00019452,2]
[368279250,1751087441214,-460.0,0.00019452,2]
[368279251,1751087441223,-460.0,0.00019452,2]
[368279252,1751087441233,-578.48463759,0.00019452,2]
[368279253,1751087441242,-460.0,0.00019452,2]
[368279254,1751087441252,-460.0,0.00019452,2]
[368279255,1751087441385,-518.99,0.00019452,2]
[368279256,1751087441395,-763.79,0.00019452,2]
[368279257,1751087441404,-460.0,0.00019452,2]
[368279258,1751087441413,-460.0,0.00019452,2]
[368279259,1751087441422,-460.0,0.00019452,2]
[368279260,1751087441432,-2327.45,0.00019452,2]
[368279261,1751087441441,-460.0,0.00019452,2]
[368279262,1751087441451,-460.0,0.00019452,2]
[368279263,1751087441461,-460.0,0.00019452,2]
[368279264,1751087441472,-2679.76,0.00019452,2]
[368279265,1751087441481,-460.0,0.00019452,2]
[368279266,1751087441490,-460.0,0.00019452,2]
[368279267,1751087441500,-460.0,0.00019452,2]
[368279268,1751087441510,-460.0,0.00019452,2]
[368279269,1751087441520,-478.22,0.00019452,2]
[368279270,1751087441529,-460.0,0.00019452,2]
[368279271,1751087441539,-507.82,0.00019452,2]
[368279272,1751087441549,-2100.28,0.00019452,2]
[368279273,1751087441558,-460.0,0.00019452,2]
[368279274,1751087441567,-460.0,0.00019452,2]
[368279275,1751087441576,-460.0,0.00019452,2]
[368279276,1751087441585,-460.0,0.00019452,2]
[368279277,1751087441594,-1102.85,0.00019452,2]
[368279278,1751087441604,-460.0,0.00019452,2]
[368279279,1751087441613,-2998.79,0.00019452,2]
[368279280,1751087441623,-460.0,0.00019452,2]
[368279281,1751087441632,-1008.33,0.00019452,2]
[368279282,1751087441641,-460.0,0.00019452,2]
[368279283,1751087441651,-460.0,0.00019452,2]
[368279284,1751087441660,-291.04696635,0.00019452,2]
[368279285,1751087441670,-1774.18,0.00019452,2]
[368279286,1751087441679,-460.0,0.00019452,2]
[368279287,1751087441688,-460.0,0.00019452,2]
[368279288,1751087441698,-460.0,0.00019452,2]
[368279289,1751087441707,-460.0,0.00019452,2]
[368279290,1751087441716,-460.0,0.00019452,2]
[368279291,1751087441725,-460.0,0.00019452,2]
[368279292,1751087441735,-519.19,0.00019452,2]
[368279293,1751087441743,-2125.58,0.00019452,2]
[368279294,1751087441752,-1953.73,0.00019452,2]
[368279295,1751087441762,-841.77,0.00019452,2]
[368279296,1751087441771,-1316.31,0.00019452,2]
[368279297,1751087441780,-460.0,0.00019452,2]
[368279298,1751087441794,-460.0,0.00019452,2]
[368279299,1751087441804,-460.0,0.00019452,2]
[368279300,1751087441814,-756.38,0.00019452,2]
[368279301,1751087441823,-460.0,0.00019452,2]
[368279302,1751087441833,-735.92,0.00019452,2]
[368279303,1751087441842,-460.0,0.00019452,2]
[368279304,1751087441852,-4060.56,0.00019452,2]
[368279305,1751087441862,-460.0,0.00019452,2]
[368279306,1751087441872,-4380.7,0.00019452,2]
[368279307,1751087441882,-460.0,0.00019452,2]
[368279308,1751087441891,-566.08,0.00019452,2]
[368279309,1751087441901,-510.75,0.00019452,2]
[368279310,1751087441910,-460.0,0.00019452,2]
[368279311,1751087441921,-1874.02,0.00019452,2]
[368279312,1751087441938,-477.85,0.00019452,2]
[368279313,1751087441947,-1714.33,0.00019452,2]
[368279314,1751087441957,-460.0,0.00019452,2]
[368279315,1751087441967,-460.0,0.00019452,2]
[368279316,1751087441976,-460.0,0.00019452,2]
[368279317,1751087441986,-460.0,0.00019452,2]
[368279318,1751087441995,-1029.75,0.00019452,2]
[368279319,1751087442004,-460.0,0.00019452,2]
[368279320,1751087442014,-460.0,0.00019452,2]
[368279321,1751087442023,-1422.98,0.00019452,2]
[368279322,1751087442033,-460.0,0.00019452,2]
[368279323,1751087442042,-987.09,0.00019452,2]
[368279324,1751087442051,-179.49,0.00019452,2]
[368279325,1751087442060,-512.59530157,0.00019452,2]
[368279326,1751087442069,-987.0,0.00019468,2]
[368279327,1751087442079,-987.0,0.00019486,2]
[368279328,1751087442088,-2025.49537707,0.00019626,2]
[368279329,1751087442098,-987.0,0.00019678,2]
[368279330,1751087442112,-500.0,0.00019725,2]
[368279331,1751087442122,-500.0,0.00019725,2]
[368279332,1751087442132,-612.94383629,0.00019725,2]
[368279333,1751087442141,-346.95057223,0.00019726,2]
[368279334,1751087442151,-460.0,0.00019726,2]
[368279335,1751087442160,-171.74530234,0.00019726,2]
[368279336,1751087442170,-460.0,0.00019726,2]
[368279337,1751087442179,-460.0,0.00019726,2]
[368279338,1751087442188,-460.0,0.00019726,2]
[368279339,1751087442198,-460.0,0.00019726,2]
[368279340,1751087442207,-460.0,0.00019726,2]
[368279341,1751087442218,-460.0,0.00019726,2]
[368279342,1751087442227,-476.08,0.00019726,2]
[368279343,1751087442237,-460.0,0.00019726,2]
[368279344,1751087442247,-775.28,0.00019726,2]
[368279345,1751087442256,-460.0,0.00019726,2]
[368279346,1751087442265,-460.0,0.00019726,2]
[368279347,1751087442275,-460.0,0.00019726,2]
[368279348,1751087442284,-460.0,0.00019726,2]
[368279349,1751087442294,-460.0,0.00019726,2]
[368279350,1751087442303,-460.0,0.00019726,2]
[368279351,1751087442313,-551.86494749,0.00019726,2]
[368279352,1751087442322,-460.0,0.00019726,2]
[368279353,1751087442332,-460.0,0.00019726,2]
[368279354,1751087442342,-325.7,0.00019726,2]
[368279355,1751087442352,-465.20090635,0.00019726,2]
[368279356,1751087442361,-534.35,0.00019726,2]
[368279357,1751087442370,-1498.86,0.00019726,2]
[368279358,1751087442380,-712.04,0.00019726,2]
[368279359,1751087442389,-460.0,0.00019726,2]
[368279360,1751087442398,-460.0,0.00019726,2]
[368279361,1751087442408,-500.0,0.00019726,2]